fUST/lending_fUST_20250311
["ID","MTS","AMOUNT","RATE_DAILY","PERIOD"]
[355883786,1741677063370,-500.0,0.00041643,120]
[355883787,1741677063380,-1173.88,0.00041643,120]
[355883788,1741677063390,-563.67,0.00041643,120]
[355883789,1741677063400,-2904.6,0.00041643,120]
[355883790,1741677063411,-1315.84,0.00041643,120]
[355883791,1741677063421,-500.0,0.00041643,120]
[355883792,1741677063431,-500.0,0.00041643,120]
[355883793,1741677063441,-500.0,0.00041643,120]
[355883794,1741677063451,-709.072725,0.00041643,120]
[355883795,1741677063460,-709.072725,0.00041643,120]
[355883796,1741677063470,-709.072725,0.00041643,120]
[355883797,1741677063480,-903.3,0.00041643,120]
[355883798,1741677063489,-1141.61,0.00041643,120]
[355883799,1741677063499,-709.072725,0.00041643,120]
[355883800,1741677063508,-1015.54,0.00041643,120]
[355883801,1741677063518,-709.072725,0.00041643,120]
[355883802,1741677063528,-709.072734,0.00041643,120]
[355883803,1741677063537,-500.0,0.00041643,120]
[355883804,1741677063547,-500.0,0.00041643,120]
[355883805,1741677063556,-500.0,0.00041643,120]
[355883806,1741677063567,-1542.06,0.00041643,120]
[355883807,1741677063576,-1372.28,0.00041643,120]
[355883808,1741677063586,-1109.59,0.00041643,120]
[355883809,1741677063598,-930.38,0.00041643,120]
[355883810,1741677063609,-557.02977663,0.00041643,120]
[355883811,1741677063618,-1002.23,0.00041643,120]
[355883812,1741677063628,-1162.38,0.00041643,120]
[355883813,1741677063638,-865.87,0.00041643,120]
[355883814,1741677063647,-500.0,0.00041643,120]
[355883815,1741677063657,-500.0,0.00041643,120]
[355883816,1741677063666,-1671.47,0.00041643,120]
[355883817,1741677063676,-500.0,0.00041643,120]
[355883818,1741677063688,-778.32,0.00041643,120]
[355883819,1741677063698,-749.89,0.00041643,120]
[355883820,1741677063708,-354.438902,0.00041643,120]
[355883821,1741677063717,-354.438902,0.00041643,120]
[355883822,1741677063726,-6548.53,0.00041643,120]
[355883823,1741677063735,-2823.68,0.00041643,120]
[355883824,1741677063745,-591.21,0.00041643,120]
[355883825,1741677063755,-500.0,0.00041643,120]
[355883826,1741677063765,-354.438902,0.00041643,120]
[355883827,1741677063775,-354.438903,0.00041643,120]
[355883828,1741677063784,-641.55,0.00041643,120]
[355883829,1741677063794,-558.06,0.00041643,120]
[355883830,1741677063804,-604.17,0.00041643,120]
[355883831,1741677063813,-500.0,0.00041643,120]
[355883832,1741677063822,-3056.22,0.00041643,120]
[355883833,1741677063834,-500.0,0.00041643,120]
[355883834,1741677063843,-1064.64,0.00041643,120]
[355883835,1741677063853,-1343.89,0.00041643,120]
[355883836,1741677063863,-2633.22,0.00041643,120]
[355883837,1741677063872,-541.93292018,0.00041643,120]
[355883838,1741677063882,-500.0,0.00041643,120]
[355883839,1741677063892,-500.0,0.00041643,120]
[355883840,1741677063902,-500.0,0.00041643,120]
[355883841,1741677063911,-500.0,0.00041643,120]
[355883842,1741677063921,-4978.29,0.00041643,120]
[355883843,1741677063931,-500.0,0.00041643,120]
[355883844,1741677063940,-560.30694323,0.00041643,120]
[355883845,1741677063950,-815.68,0.00041643,120]
[355883846,1741677063960,-500.0,0.00041643,120]
[355883847,1741677063970,-500.0,0.00041643,120]
[355883848,1741677063979,-4985.91,0.00041643,120]
[355883849,1741677063989,-814.46,0.00041643,120]
[355883850,1741677063999,-526.47,0.00041643,120]
[355883851,1741677064008,-500.0,0.00041643,120]
[355883852,1741677064017,-500.0,0.00041643,120]
[355883853,1741677064027,-500.0,0.00041643,30]
[355883854,1741677064036,-500.0,0.00041643,120]
[355883855,1741677064045,-1676.02,0.00041643,120]
[355883856,1741677064055,-500.0,0.00041643,120]
[355883857,1741677064065,-201.15211504,0.00041643,120]
[355883858,1741677064074,-500.0,0.00041643,120]
[355883859,1741677064086,-827.14,0.00041643,120]
[355883860,1741677064095,-779.7,0.00041643,120]
[355883861,1741677064105,-500.0,0.00041643,120]
[355883862,1741677064115,-500.0,0.00041643,120]
[355883863,1741677064124,-500.0,0.00041643,120]
[355883864,1741677064134,-506.10973957,0.00041643,120]
[355883865,1741677064144,-780.75,0.00041643,120]
[355883866,1741677064153,-574.23,0.00041643,120]
[355883867,1741677064163,-18732.06,0.00041643,120]
[355883868,1741677064173,-1238.75,0.00041643,120]
[355883869,1741677064182,-500.0,0.00041673,10]
[355883870,1741677064192,-501.27502376,0.00041673,3]
[355883871,1741677064202,-524.55119073,0.00041673,10]
[355883872,1741677064212,-500.0,0.00041673,5]
[355883873,1741677064222,-368.04667747,0.00041673,10]
[355883874,1741677064233,-500.0,0.00041673,10]
[355883875,1741677064243,-163.87595921,0.00041673,10]
[355883876,1741677064253,-150.0,0.00041673,10]
[355883877,1741677064264,-214.02535561,0.00041673,10]
[355883878,1741677064274,-150.0,0.00041673,10]
[355883879,1741677064284,-150.0,0.00041673,10]
[355883880,1741677064294,-156.587,0.0004175,2]
[355883881,1741677064306,-151.0,0.00041917,120]
[355883882,1741677064316,-151.0,0.00041917,120]
[355883883,1741677064327,-151.0,0.00041917,120]
[355883884,1741677064339,-151.0,0.00041917,120]
[355883885,1741677064350,-151.0,0.00041917,120]
[355883886,1741677064360,-151.0,0.00041917,120]
[355883887,1741677064370,-500.0,0.00041917,120]
[355883888,1741677064381,-500.0,0.00041917,120]
[355883889,1741677064391,-500.0,0.00041917,120]
[355883890,1741677064401,-500.0,0.00041917,5]
[355883891,1741677064412,-876.82,0.00041917,120]
[355883892,1741677064421,-600.72,0.00041917,120]
[355883893,1741677064431,-285.466711,0.00041917,120]
[355883894,1741677064440,-285.466711,0.00041917,120]
[355883895,1741677064449,-500.0,0.00041917,120]
[355883896,1741677064459,-285.466711,0.00041917,120]
[355883897,1741677064469,-285.466703,0.00041917,120]
[355883898,1741677064480,-500.0,0.00041917,120]
[355883899,1741677064490,-500.0,0.00041917,120]
[355883900,1741677064499,-553.95230936,0.00041917,120]
[355883901,1741677064508,-602.4,0.00041917,120]
[355883902,1741677064519,-500.0,0.00041917,120]
[355883903,1741677064528,-500.0,0.00041917,120]
[355883904,1741677064538,-205.968851,0.00041917,120]
[355883905,1741677064548,-205.968848,0.00041917,120]
[355883906,1741677064557,-821.31,0.00041917,120]
[355883907,1741677064567,-500.0,0.00041917,120]
[355883908,1741677064576,-500.0,0.00041917,120]
[355883909,1741677064589,-500.0,0.00041917,120]
[355883910,1741677064600,-250.692846,0.00041917,120]
[355883911,1741677064611,-250.692846,0.00041917,120]
[355883912,1741677064622,-500.0,0.00041917,120]
[355883913,1741677064631,-500.0,0.00041917,120]
[355883914,1741677064643,-250.692846,0.00041917,120]
[355883915,1741677064652,-250.692846,0.00041917,120]
[355883916,1741677064661,-547.92037625,0.00041917,120]
[355883917,1741677064671,-500.0,0.00041917,120]
[355883918,1741677064682,-500.0,0.00041917,120]
[355883919,1741677064692,-500.0,0.00041917,120]
[355883920,1741677064701,-677.36,0.00041917,120]
[355883921,1741677064711,-861.19,0.00041917,120]
[355883922,1741677064722,-500.0,0.00041917,120]
[355883923,1741677064732,-500.0,0.00041917,120]
[355883924,1741677064742,-511.18,0.00041917,120]
[355883925,1741677064753,-500.0,0.00041917,120]
[355883926,1741677064764,-500.0,0.00041917,120]
[355883927,1741677064775,-500.0,0.00041917,120]
[355883928,1741677064786,-500.0,0.00041917,120]
[355883929,1741677064798,-500.0,0.00041917,120]
[355883930,1741677064808,-500.0,0.00041917,120]
[355883931,1741677064819,-500.0,0.00041917,120]
[355883932,1741677064828,-580.35150179,0.00041917,120]
[355883933,1741677064839,-888.82,0.00041917,120]
[355883934,1741677064849,-197.81152558,0.00041917,120]
[355883935,1741677064859,-500.0,0.00041917,120]
[355883936,1741677064869,-500.0,0.00041917,120]
[355883937,1741677064879,-899.83,0.00041917,120]
[355883938,1741677064889,-500.0,0.00041917,120]
[355883939,1741677064900,-500.0,0.00041917,120]
[355883940,1741677064910,-1471.55,0.00041917,120]
[355883941,1741677064920,-541.66252065,0.00041917,120]
[355883942,1741677064931,-500.0,0.00041917,120]
[355883943,1741677064941,-500.0,0.00041917,2]
[355883944,1741677064950,-500.0,0.00041917,120]
[355883945,1741677064960,-500.0,0.00041917,120]
[355883946,1741677064970,-730.48,0.00041917,120]
[355883947,1741677064980,-500.0,0.00041917,120]
[355883948,1741677064991,-827.7,0.00041917,120]
[355883949,1741677065001,-500.0,0.00041917,120]
[355883950,1741677065010,-735.85,0.00041917,120]
[355883951,1741677065019,-500.0,0.00041917,120]
[355883952,1741677065029,-500.0,0.00041917,2]
[355883953,1741677065038,-500.0,0.00041917,120]
[355883954,1741677065048,-500.0,0.00041917,120]
[355883955,1741677065057,-500.0,0.00041917,2]
[355883956,1741677065067,-672.42,0.00041917,120]
[355883957,1741677065077,-500.0,0.00041917,120]
[355883958,1741677065088,-500.0,0.00041917,2]
[355883959,1741677065098,-500.0,0.00041917,120]
[355883960,1741677065108,-500.0,0.00041917,120]
[355883961,1741677065118,-500.0,0.00041917,120]
[355883962,1741677065128,-916.61,0.00041917,2]
[355883963,1741677065137,-500.0,0.00041917,120]
[355883964,1741677065147,-500.0,0.00041917,120]
[355883965,1741677065156,-537.24,0.00041917,120]
[355883966,1741677065166,-500.0,0.00041917,120]
[355883967,1741677065176,-517.41,0.00041917,120]
[355883968,1741677065186,-1000.0,0.00041917,120]
[355883969,1741677065195,-1180.91,0.00041917,120]
[355883970,1741677065205,-500.0,0.00041917,120]
[355883971,1741677065215,-500.0,0.00041917,120]
[355883972,1741677065225,-500.0,0.00041917,120]
[355883973,1741677065234,-913.59,0.00041917,120]
[355883974,1741677065243,-500.0,0.00041917,2]
[355883975,1741677065252,-500.0,0.00041917,120]
[355883976,1741677065262,-500.0,0.00041917,120]
[355883977,1741677065272,-548.7994063,0.00041917,120]
[355883978,1741677065282,-500.0,0.00041917,120]
[355883979,1741677065291,-500.0,0.00041917,120]
[355883980,1741677065301,-914.26,0.00041917,120]
[355883981,1741677065310,-942.62,0.00041917,120]
[355883982,1741677065320,-500.0,0.00041917,120]
[355883983,1741677065331,-500.0,0.00041917,120]
[355883984,1741677065341,-500.0,0.00041917,120]
[355883985,1741677065351,-834.72,0.00041917,120]
[355883986,1741677065361,-621.06,0.00041917,120]
[355883987,1741677065371,-891.32,0.00041917,120]
[355883988,1741677065380,-500.0,0.00041917,120]
[355883989,1741677065390,-500.0,0.00041917,120]
[355883990,1741677065399,-879.32,0.00041917,120]
[355883991,1741677065529,-500.0,0.00041917,120]
[355883992,1741677065539,-500.0,0.00041917,120]
[355883993,1741677065548,-1904.23,0.00041917,15]
[355883994,1741677065560,-876.62,0.00041917,120]
[355883995,1741677065569,-500.0,0.00041917,120]
[355883996,1741677065579,-272.78688632,0.00041917,120]
[355883997,1741677065590,-1911.29,0.00041917,120]
[355883998,1741677065600,-500.0,0.00041917,120]
[355883999,1741677065611,-500.0,0.00041917,120]
[355884000,1741677065620,-761.69,0.00041917,120]
[355884001,1741677065629,-618.03,0.00041917,120]
[355884002,1741677065640,-1373.32,0.00041917,120]
[355884003,1741677065650,-592.90694377,0.00041917,120]
[355884004,1741677065659,-500.0,0.00041917,120]
[355884005,1741677065669,-740.7,0.00041917,120]
[355884006,1741677065680,-2196.83,0.00041917,120]
[355884007,1741677065689,-2495.99,0.00041917,120]
[355884008,1741677065699,-500.0,0.00041917,120]
[355884009,1741677065707,-500.0,0.00041917,120]
[355884010,1741677065717,-907.9,0.00041917,120]
[355884011,1741677065726,-261.68958595,0.00041917,120]
[355884012,1741677065736,-500.0,0.00041917,120]
[355884013,1741677065745,-728.19,0.00041917,120]
[355884014,1741677065755,-1064.73,0.00041917,120]
[355884015,1741677065764,-500.0,0.00041917,120]
[355884016,1741677065773,-500.0,0.00041917,120]
[355884017,1741677065783,-500.0,0.00041917,120]
[355884018,1741677065791,-500.0,0.00041917,120]
[355884019,1741677065801,-927.44,0.00041917,120]
[355884020,1741677065810,-500.0,0.00041917,120]
[355884021,1741677065819,-700.81,0.00041917,120]
[355884022,1741677065827,-501.46,0.00041917,120]
[355884023,1741677065839,-500.0,0.00041917,120]
[355884024,1741677065848,-500.0,0.00041917,120]
[355884025,1741677065857,-1139.64,0.00041917,120]
[355884026,1741677065866,-754.45,0.00041917,120]
[355884027,1741677065876,-764.98,0.00041917,120]
[355884028,1741677065885,-500.0,0.00041917,120]
[355884029,1741677065895,-500.0,0.00041917,120]
[355884030,1741677065904,-500.0,0.00041917,120]
[355884031,1741677065914,-638.96818033,0.00041917,120]
[355884032,1741677065923,-500.0,0.00041917,120]
[355884033,1741677065932,-500.0,0.00041917,120]
[355884034,1741677065942,-752.8,0.00041917,120]
[355884035,1741677065951,-757.69,0.00041917,120]
[355884036,1741677065960,-500.0,0.00041917,120]
[355884037,1741677065969,-500.0,0.00041917,120]
[355884038,1741677065978,-610.20807806,0.00041917,120]
[355884039,1741677065987,-550.70636375,0.00041917,120]
[355884040,1741677065996,-500.0,0.00041917,120]
[355884041,1741677066006,-500.0,0.00041917,120]
[355884042,1741677066016,-871.8,0.00041917,120]
[355884043,1741677066025,-500.0,0.00041917,120]
[355884044,1741677066035,-500.0,0.00041917,120]
[355884045,1741677066044,-500.0,0.00041917,120]
[355884046,1741677066053,-500.0,0.00041917,120]
[355884047,1741677066062,-3599.4,0.00041917,120]
[355884048,1741677066071,-590.78,0.00041917,120]
[355884049,1741677066082,-500.0,0.00041917,120]
[355884050,1741677066091,-500.0,0.00041917,120]
[355884051,1741677066101,-500.0,0.00041917,120]
[355884052,1741677066111,-500.0,0.00041917,120]
[355884053,1741677066120,-500.0,0.00041917,120]
[355884054,1741677066130,-526.51,0.00041917,120]
[355884055,1741677066139,-500.0,0.00041917,120]
[355884056,1741677066148,-1060.7,0.00041917,120]
[355884057,1741677066158,-733.46,0.00041917,120]
[355884058,1741677066168,-3170.31,0.00041917,120]
[355884059,1741677066177,-500.0,0.00041917,120]
[355884060,1741677066187,-649.5,0.00041917,120]
[355884061,1741677066196,-500.0,0.00041917,120]
[355884062,1741677066206,-913.42,0.00041917,120]
[355884063,1741677066215,-593.12,0.00041917,120]
[355884064,1741677066226,-1207.37,0.00041917,120]
[355884065,1741677066235,-500.0,0.00041917,120]
[355884066,1741677066245,-666.71,0.00041917,120]
[355884067,1741677066255,-546.10109554,0.00041917,120]
[355884068,1741677066264,-500.0,0.00041917,120]
[355884069,1741677066273,-500.0,0.00041917,120]
[355884070,1741677066282,-758.09,0.00041917,120]
[355884071,1741677066291,-500.0,0.00041917,120]
[355884072,1741677066301,-889.28,0.00041917,120]
[355884073,1741677066310,-500.0,0.00041917,120]
[355884074,1741677066319,-500.0,0.00041917,120]
[355884075,1741677066328,-501.8,0.00041917,120]
[355884076,1741677066341,-500.0,0.00041917,120]
[355884077,1741677066350,-500.0,0.00041917,120]
[355884078,1741677066359,-739.81,0.00041917,3]
[355884079,1741677066369,-500.0,0.00041917,120]
[355884080,1741677066378,-500.0,0.00041917,120]
[355884081,1741677066387,-6236.56,0.00041917,120]
[355884082,1741677066397,-500.0,0.00041917,120]
[355884083,1741677066407,-704.02,0.00041917,120]
[355884084,1741677066416,-546.67,0.00041917,120]
[355884085,1741677066425,-500.0,0.00041917,120]
[355884086,1741677066435,-1211.6,0.00041917,120]
[355884087,1741677066444,-500.0,0.00041917,120]
[355884088,1741677066453,-5818.24,0.00041917,120]
[355884089,1741677066462,-500.0,0.00041917,120]
[355884090,1741677066472,-500.0,0.00041917,120]
[355884091,1741677066481,-162633.55,0.00041917,7]
[355884092,1741677066490,-500.0,0.00041917,120]
[355884093,1741677066499,-584.74135456,0.00041917,120]
[355884094,1741677066508,-1203.51,0.00041917,120]
[355884095,1741677066518,-500.0,0.00041917,120]
[355884096,1741677066527,-1483.97,0.00041917,120]
[355884097,1741677066536,-500.0,0.00041917,120]
[355884098,1741677066546,-3696.03,0.00041917,120]
[355884099,1741677066555,-545.73131607,0.00041917,120]
[355884100,1741677066564,-500.0,0.00041917,120]
[355884101,1741677066573,-1209.02,0.00041917,120]
[355884102,1741677066583,-500.0,0.00041917,120]
[355884103,1741677066593,-500.0,0.00041917,120]
[355884104,1741677066606,-500.0,0.00041917,120]
[355884105,1741677066615,-500.0,0.00041917,120]
[355884106,1741677066625,-821.6,0.00041917,120]
[355884107,1741677066634,-500.0,0.00041917,120]
[355884108,1741677066645,-500.0,0.00041917,120]
[355884109,1741677066654,-541.58,0.00041917,120]
[355884110,1741677066664,-1052.21,0.00041917,120]
[355884111,1741677066674,-954.41,0.00041917,120]
[355884112,1741677066683,-1041.86,0.00041917,120]
[355884113,1741677066693,-529.84,0.00041917,120]
[355884114,1741677066703,-1047.4,0.00041917,120]
[355884115,1741677066713,-894.16,0.00041917,120]
[355884116,1741677066723,-1196.21,0.00041917,120]
[355884117,1741677066732,-666.22,0.00041917,120]
[355884118,1741677066742,-500.0,0.00041917,120]
[355884119,1741677066751,-530.54986049,0.00041917,120]
[355884120,1741677066760,-5402.86,0.00041917,60]
[355884121,1741677066770,-500.0,0.00041917,120]
[355884122,1741677066779,-753.56,0.00041917,120]
[355884123,1741677066789,-1057.08,0.00041917,120]
[355884124,1741677066798,-500.0,0.00041917,120]
[355884125,1741677066808,-662.51,0.00041917,120]
[355884126,1741677066817,-894.71,0.00041917,120]
[355884127,1741677066826,-500.0,0.00041917,120]
[355884128,1741677066836,-821.34,0.00041917,120]
[355884129,1741677066846,-696.69,0.00041917,120]
[355884130,1741677066855,-1165.85,0.00041917,120]
[355884131,1741677066864,-500.0,0.00041917,120]
[355884132,1741677066874,-1480.83,0.00041917,120]
[355884133,1741677066883,-1110.35,0.00041917,120]
[355884134,1741677066893,-573.54,0.00041917,120]
[355884135,1741677066902,-500.0,0.00041917,120]
[355884136,1741677066912,-727.57,0.00041917,120]
[355884137,1741677066921,-532.68634732,0.00041917,120]
[355884138,1741677066930,-985.67,0.00041917,120]
[355884139,1741677066940,-500.0,0.00041917,120]
[355884140,1741677066949,-500.0,0.00041917,120]
[355884141,1741677066959,-500.0,0.00041917,120]
[355884142,1741677066968,-500.0,0.00041917,120]
[355884143,1741677066977,-673.37,0.00041917,120]
[355884144,1741677066986,-22530.83,0.00041917,120]
[355884145,1741677066996,-612.86,0.00041917,120]
[355884146,1741677067005,-4354.32,0.00041917,120]
[355884147,1741677067014,-4191.25,0.00041917,120]
[355884148,1741677067023,-500.0,0.00041917,120]
[355884149,1741677067033,-739.21,0.00041917,120]
[355884150,1741677067042,-500.0,0.00041917,120]
[355884151,1741677067051,-500.0,0.00041917,120]
[355884152,1741677067061,-2337.95,0.00041917,120]
[355884153,1741677067070,-500.0,0.00041917,120]
[355884154,1741677067079,-500.0,0.00041917,120]
[355884155,1741677067090,-500.0,0.00041917,120]
[355884156,1741677067099,-500.0,0.00041917,120]
[355884157,1741677067108,-500.0,0.00041917,120]
[355884158,1741677067118,-500.0,0.00041917,30]
[355884159,1741677067127,-916.38,0.00041917,120]
[355884160,1741677067137,-594.78,0.00041917,120]
[355884161,1741677067146,-500.0,0.00041917,120]
[355884162,1741677067156,-699.61,0.00041917,7]
[355884163,1741677067166,-864.67,0.00041917,120]
[355884164,1741677067176,-5321.86,0.00041917,120]
[355884165,1741677067186,-826.1,0.00041917,120]
[355884166,1741677067195,-785.21,0.00041917,120]
[355884167,1741677067205,-500.0,0.00041917,120]
[355884168,1741677067215,-500.0,0.00041917,120]
[355884169,1741677067225,-500.0,0.00041917,120]
[355884170,1741677067234,-1213.05,0.00041917,7]
[355884171,1741677067243,-500.0,0.00041917,120]
[355884172,1741677067253,-1044.41,0.00041917,120]
[355884173,1741677067262,-804.37,0.00041917,120]
[355884174,1741677067271,-2752.38,0.00041917,120]
[355884175,1741677067281,-1173.88,0.00041917,120]
[355884176,1741677067290,-500.0,0.00041917,120]
[355884177,1741677067299,-563.67,0.00041917,120]
[355884178,1741677067309,-2904.6,0.00041917,120]
[355884179,1741677067318,-1315.84,0.00041917,120]
[355884180,1741677067327,-500.0,0.00041917,120]
[355884181,1741677067338,-500.0,0.00041917,120]
[355884182,1741677067348,-500.0,0.00041917,120]
[355884183,1741677067357,-903.3,0.00041917,120]
[355884184,1741677067368,-1141.61,0.00041917,120]
[355884185,1741677067378,-1015.54,0.00041917,120]
[355884186,1741677067387,-500.0,0.00041917,120]
[355884187,1741677067397,-500.0,0.00041917,120]
[355884188,1741677067406,-500.0,0.00041917,120]
[355884189,1741677067527,-1542.06,0.00041917,120]
[355884190,1741677067536,-1372.28,0.00041917,120]
[355884191,1741677067546,-1109.59,0.00041917,120]
[355884192,1741677067555,-930.38,0.00041917,120]
[355884193,1741677067565,-1002.23,0.00041917,120]
[355884194,1741677067574,-1162.38,0.00041917,120]
[355884195,1741677067584,-865.87,0.00041917,120]
[355884196,1741677067595,-500.0,0.00041917,120]
[355884197,1741677067606,-541.90369091,0.00041917,120]
[355884198,1741677067615,-1671.47,0.00041917,120]
[355884199,1741677067624,-500.0,0.00041917,120]
[355884200,1741677067633,-778.32,0.00041917,120]
[355884201,1741677067644,-749.89,0.00041917,120]
[355884202,1741677067653,-6548.53,0.00041917,120]
[355884203,1741677067663,-591.21,0.00041917,120]
[355884204,1741677067673,-2823.68,0.00041917,120]
[355884205,1741677067682,-500.0,0.00041917,120]
[355884206,1741677067692,-641.55,0.00041917,120]
[355884207,1741677067702,-558.06,0.00041917,120]
[355884208,1741677067711,-604.17,0.00041917,120]
[355884209,1741677067720,-500.0,0.00041917,120]
[355884210,1741677067729,-3056.22,0.00041917,120]
[355884211,1741677067738,-249.9900029,0.00041917,120]
[355884212,1741677067747,-1064.64,0.00041917,120]
[355884213,1741677067756,-1343.89,0.00041917,120]
[355884214,1741677067765,-2633.22,0.00041917,120]
[355884215,1741677067776,-500.0,0.00041917,120]
[355884216,1741677067785,-545.14604394,0.00041917,120]
[355884217,1741677067794,-500.0,0.00041917,120]
[355884218,1741677067803,-500.0,0.00041917,120]
[355884219,1741677067813,-4978.29,0.00041917,120]
[355884220,1741677067823,-500.0,0.00041917,120]
[355884221,1741677067833,-815.68,0.00041917,120]
[355884222,1741677067842,-500.0,0.00041917,120]
[355884223,1741677067852,-551.07208224,0.00041917,120]
[355884224,1741677067862,-4985.91,0.00041917,120]
[355884225,1741677067871,-814.46,0.00041917,120]
[355884226,1741677067881,-526.47,0.00041917,120]
[355884227,1741677067891,-500.0,0.00041917,120]
[355884228,1741677067900,-500.0,0.00041917,120]
[355884229,1741677067910,-500.0,0.00041917,30]
[355884230,1741677067920,-500.0,0.00041917,120]
[355884231,1741677067929,-1676.02,0.00041917,120]
[355884232,1741677067939,-500.0,0.00041917,120]
[355884233,1741677067950,-500.0,0.00041917,120]
[355884234,1741677067959,-827.14,0.00041917,120]
[355884235,1741677067969,-779.7,0.00041917,120]
[355884236,1741677067978,-500.0,0.00041917,120]
[355884237,1741677067987,-500.0,0.00041917,120]
[355884238,1741677067997,-500.0,0.00041917,120]
[355884239,1741677068007,-780.75,0.00041917,120]
[355884240,1741677068017,-574.23,0.00041917,120]
[355884241,1741677068027,-18732.06,0.00041917,120]
[355884242,1741677068037,-1238.75,0.00041917,120]
[355884243,1741677068046,-310.7238952,0.00041945,30]
[355884244,1741677068057,-167.7966245,0.00041945,30]
[355884245,1741677068067,-1000.0,0.00042,120]
[355884246,1741677068076,-175.462,0.00042004,63]
[355884247,1741677068086,-151.0,0.00042191,120]
[355884248,1741677068096,-219.339216,0.00042191,120]
[355884249,1741677068106,-500.0,0.00042191,120]
[355884250,1741677068116,-500.0,0.00042191,120]
[355884251,1741677068126,-500.0,0.00042191,120]
[355884252,1741677068136,-500.0,0.00042191,5]
[355884253,1741677068146,-876.82,0.00042191,120]
[355884254,1741677068156,-600.72,0.00042191,120]
[355884255,1741677068165,-500.0,0.00042191,120]
[355884256,1741677068175,-500.0,0.00042191,120]
[355884257,1741677068185,-500.0,0.00042191,120]
[355884258,1741677068195,-602.4,0.00042191,120]
[355884259,1741677068205,-500.0,0.00042191,120]
[355884260,1741677068214,-500.0,0.00042191,120]
[355884261,1741677068224,-821.31,0.00042191,120]
[355884262,1741677068234,-500.0,0.00042191,120]
[355884263,1741677068243,-500.0,0.00042191,120]
[355884264,1741677068253,-500.0,0.00042191,120]
[355884265,1741677068263,-509.10951589,0.00042191,120]
[355884266,1741677068273,-301.60372645,0.00042191,120]
[355884267,1741677068283,-500.0,0.00042191,120]
[355884268,1741677068293,-500.0,0.00042191,120]
[355884269,1741677068302,-500.0,0.00042191,120]
[355884270,1741677068311,-677.36,0.00042191,120]
[355884271,1741677068321,-861.19,0.00042191,120]
[355884272,1741677068330,-500.0,0.00042191,120]
[355884273,1741677068342,-541.09244764,0.00042191,120]
[355884274,1741677068351,-511.18,0.00042191,120]
[355884275,1741677068361,-500.0,0.00042191,120]
[355884276,1741677068371,-500.0,0.00042191,120]
[355884277,1741677068380,-500.0,0.00042191,120]
[355884278,1741677068389,-500.0,0.00042191,120]
[355884279,1741677068399,-500.0,0.00042191,120]
[355884280,1741677068408,-500.0,0.00042191,120]
[355884281,1741677068418,-500.0,0.00042191,120]
[355884282,1741677068430,-888.82,0.00042191,120]
[355884283,1741677068440,-286.84,0.00042191,120]
[355884284,1741677068449,-500.0,0.00042191,120]
[355884285,1741677068459,-899.83,0.00042191,120]